[Event "Late-Titled-Tuesday-Blitz-April-23-2024"]
[Site "Chess.com"]
[Date "2024.04.23"]
[Round "9"]
[White "shirovin"]
[Black "VladimirBugayev"]
[Result "0-1"]
[WhiteElo "2083"]
[BlackElo "2241"]
[TimeControl "180+1"]
[EndTime "15:41:48 PDT"]
[Termination "VladimirBugayev won by resignation"]

1. e4 {[%clk 0:03:00.9]} 1... c6 {[%clk 0:02:59.4]} 2. d4 {[%clk 0:02:59.5]}
2... d5 {[%clk 0:02:59.9]} 3. exd5 {[%clk 0:03:00.1]} 3... cxd5 {[%clk
0:03:00.3]} 4. Bd3 {[%clk 0:02:59]} 4... Nc6 {[%clk 0:03:00.1]} 5. c3 {[%clk
0:02:59.4]} 5... g6 {[%clk 0:02:54.3]} 6. Bf4 {[%clk 0:02:57]} 6... Nf6 {[%clk
0:02:52.3]} 7. Nd2 {[%clk 0:02:52.9]} 7... Bf5 {[%clk 0:02:52]} 8. Bxf5 {[%clk
0:02:51.5]} 8... gxf5 {[%clk 0:02:52.9]} 9. Ngf3 {[%clk 0:02:51]} 9... e6 {[%clk
0:02:53.5]} 10. O-O {[%clk 0:02:47.1]} 10... Ne4 {[%clk 0:02:52.6]} 11. Ne5
{[%clk 0:02:45.8]} 11... Nxe5 {[%clk 0:02:46.7]} 12. Bxe5 {[%clk 0:02:45.5]}
12... f6 {[%clk 0:02:47.1]} 13. Bf4 {[%clk 0:02:45.2]} 13... Bd6 {[%clk
0:02:46.4]} 14. Qh5+ {[%clk 0:02:43.2]} 14... Ke7 {[%clk 0:02:38.1]} 15. Rfe1
{[%clk 0:02:38.9]} 15... Bxf4 {[%clk 0:02:35.8]} 16. Nb3 {[%clk 0:02:22.8]}
16... Qe8 {[%clk 0:02:22]} 17. Qh3 {[%clk 0:02:07.7]} 17... Qg6 {[%clk 0:02:15]}
18. f3 {[%clk 0:02:04.8]} 18... Ng5 {[%clk 0:01:53.9]} 19. Qh4 {[%clk
0:02:03.7]} 19... Nxf3+ {[%clk 0:01:53.9]} 0-1

[Event "Late-Titled-Tuesday-Blitz-April-23-2024"]
[Site "Chess.com"]
[Date "2024.04.23"]
[Round "9"]
[White "PapaieDudu"]
[Black "2Coaches1Profile"]
[Result "0-1"]
[WhiteElo "2444"]
[BlackElo "2558"]
[TimeControl "180+1"]
[EndTime "15:42:16 PDT"]
[Termination "2Coaches1Profile won by checkmate"]

1. Nf3 {[%clk 0:03:00.9]} 1... g5 {[%clk 0:02:57.7]} 2. Nxg5 {[%clk 0:02:58.2]}
2... e5 {[%clk 0:02:57.4]} 3. Nf3 {[%clk 0:02:54.4]} 3... e4 {[%clk 0:02:57.1]}
4. Nd4 {[%clk 0:02:53.8]} 4... d5 {[%clk 0:02:56.8]} 5. e3 {[%clk 0:02:48.4]}
5... c5 {[%clk 0:02:56.2]} 6. Nb3 {[%clk 0:02:48.2]} 6... Nc6 {[%clk 0:02:56.3]}
7. d4 {[%clk 0:02:46.1]} 7... c4 {[%clk 0:02:55.4]} 8. N3d2 {[%clk 0:02:42.4]}
8... Be6 {[%clk 0:02:48]} 9. a4 {[%clk 0:02:27]} 9... Qa5 {[%clk 0:02:41.9]} 10.
Nc3 {[%clk 0:02:21.2]} 10... Nf6 {[%clk 0:02:33.5]} 11. Be2 {[%clk 0:02:19.4]}
11... Bd6 {[%clk 0:02:31.5]} 12. f3 {[%clk 0:02:03.9]} 12... exf3 {[%clk
0:02:21.3]} 13. Bxf3 {[%clk 0:02:02.3]} 13... a6 {[%clk 0:02:20.1]} 14. O-O
{[%clk 0:01:56.8]} 14... Qc7 {[%clk 0:02:18.2]} 15. h3 {[%clk 0:01:47.4]} 15...
Rg8 {[%clk 0:02:16.5]} 16. Kh1 {[%clk 0:01:45.2]} 16... O-O-O {[%clk 0:02:15.7]}
17. Nxc4 {[%clk 0:01:19.1]} 17... dxc4 {[%clk 0:02:14.1]} 18. Bxc6 {[%clk
0:01:17.7]} 18... Qxc6 {[%clk 0:02:13.6]} 19. Rxf6 {[%clk 0:01:17.2]} 19...
Qxg2# {[%clk 0:02:12.1]} 0-1

[Event "Late-Titled-Tuesday-Blitz-April-23-2024"]
[Site "Chess.com"]
[Date "2024.04.23"]
[Round "9"]
[White "Boorchess"]
[Black "RebecaJimnz"]
[Result "1-0"]
[WhiteElo "2530"]
[BlackElo "2308"]
[TimeControl "180+1"]
[EndTime "15:42:36 PDT"]
[Termination "Boorchess won by resignation"]

1. d4 {[%clk 0:03:00.9]} 1... d5 {[%clk 0:02:55.2]} 2. c4 {[%clk 0:03:00.4]}
2... c6 {[%clk 0:02:54.9]} 3. cxd5 {[%clk 0:03:00.6]} 3... cxd5 {[%clk
0:02:51.5]} 4. Nc3 {[%clk 0:03:01.1]} 4... Nc6 {[%clk 0:02:31.5]} 5. e4 {[%clk
0:03:00.5]} 5... dxe4 {[%clk 0:02:26.1]} 6. d5 {[%clk 0:03:00]} 6... Ne5 {[%clk
0:02:25]} 7. Qa4+ {[%clk 0:02:59.2]} 7... Bd7 {[%clk 0:02:24.1]} 8. Qxe4 {[%clk
0:02:58.8]} 8... Ng6 {[%clk 0:02:24.6]} 9. Bc4 {[%clk 0:02:58.9]} 9... Nf6
{[%clk 0:02:24.9]} 10. Qe2 {[%clk 0:02:59.5]} 10... Qc7 {[%clk 0:02:21.2]} 11.
Nf3 {[%clk 0:02:56.5]} 11... Rc8 {[%clk 0:02:20.4]} 12. Bb3 {[%clk 0:02:55.5]}
12... Nf4 {[%clk 0:02:20.6]} 13. Bxf4 {[%clk 0:02:54.6]} 13... Qxf4 {[%clk
0:02:21.5]} 14. O-O {[%clk 0:02:54.2]} 14... g6 {[%clk 0:02:21.9]} 15. Rfe1
{[%clk 0:02:53.4]} 15... Bg4 {[%clk 0:02:16.2]} 16. Qb5+ {[%clk 0:02:49.7]}
16... Nd7 {[%clk 0:02:14.2]} 17. Ne5 {[%clk 0:02:45.8]} 17... Bg7 {[%clk
0:02:09.3]} 18. Re4 {[%clk 0:02:33]} 18... Qxe4 {[%clk 0:01:59.2]} 19. Nxe4
{[%clk 0:02:30.7]} 19... Bxe5 {[%clk 0:01:58.6]} 20. d6 {[%clk 0:02:23.3]} 20...
exd6 {[%clk 0:01:53.9]} 21. Nxd6+ {[%clk 0:02:10.6]} 21... Bxd6 {[%clk
0:01:50.5]} 22. Re1+ {[%clk 0:02:10.1]} 22... Kf8 {[%clk 0:01:47.7]} 23. Qd5
{[%clk 0:02:09.4]} 23... Be6 {[%clk 0:01:19.7]} 24. Qxd6+ {[%clk 0:02:08.9]}
24... Kg7 {[%clk 0:01:18.2]} 25. Bxe6 {[%clk 0:02:06.1]} 25... fxe6 {[%clk
0:01:19.1]} 26. Qxd7+ {[%clk 0:02:06]} 1-0

[Event "Late-Titled-Tuesday-Blitz-April-23-2024"]
[Site "Chess.com"]
[Date "2024.04.23"]
[Round "9"]
[White "CaspiIsrael"]
[Black "Slovineanu"]
[Result "1-0"]
[WhiteElo "2707"]
[BlackElo "2499"]
[TimeControl "180+1"]
[EndTime "15:43:29 PDT"]
[Termination "CaspiIsrael won by checkmate"]

1. e4 {[%clk 0:03:00.9]} 1... c6 {[%clk 0:02:57.3]} 2. d4 {[%clk 0:03:01]} 2...
d5 {[%clk 0:02:56.8]} 3. e5 {[%clk 0:03:01.7]} 3... Bf5 {[%clk 0:02:54.8]} 4.
Nc3 {[%clk 0:03:01.5]} 4... e6 {[%clk 0:02:52.8]} 5. g4 {[%clk 0:03:01.1]} 5...
Bg6 {[%clk 0:02:53.1]} 6. Nge2 {[%clk 0:03:01.8]} 6... c5 {[%clk 0:02:50.7]} 7.
h4 {[%clk 0:02:58.6]} 7... h5 {[%clk 0:02:50.7]} 8. Nf4 {[%clk 0:02:58]} 8...
Bh7 {[%clk 0:02:50.6]} 9. dxc5 {[%clk 0:02:56.4]} 9... Nc6 {[%clk 0:02:35.2]}
10. Nxh5 {[%clk 0:02:54.9]} 10... Bxc5 {[%clk 0:01:58]} 11. Nxg7+ {[%clk
0:02:51.9]} 11... Kf8 {[%clk 0:01:58.3]} 12. Nh5 {[%clk 0:02:50.9]} 12... Nxe5
{[%clk 0:01:52.6]} 13. Bf4 {[%clk 0:02:50.1]} 13... Nc6 {[%clk 0:01:46.2]} 14.
Qd2 {[%clk 0:02:49]} 14... Rc8 {[%clk 0:01:31]} 15. Bh6+ {[%clk 0:02:28.1]}
15... Nxh6 {[%clk 0:01:02.6]} 16. Qxh6+ {[%clk 0:02:27.2]} 16... Ke7 {[%clk
0:00:58.5]} 17. Qf6+ {[%clk 0:02:26.1]} 17... Kd7 {[%clk 0:00:56.7]} 18. Qxf7+
{[%clk 0:02:26.1]} 18... Qe7 {[%clk 0:00:52.5]} 19. Nf6+ {[%clk 0:02:19.6]}
19... Kd6 {[%clk 0:00:44.8]} 20. Nb5+ {[%clk 0:02:09.8]} 20... Ke5 {[%clk
0:00:35.3]} 21. f4+ {[%clk 0:02:04.2]} 21... Kxf4 {[%clk 0:00:31.5]} 22. Nxd5+
{[%clk 0:02:04]} 22... Kg3 {[%clk 0:00:23.1]} 23. Qf4# {[%clk 0:02:00.9]} 1-0

[Event "Late-Titled-Tuesday-Blitz-April-23-2024"]
[Site "Chess.com"]
[Date "2024.04.23"]
[Round "9"]
[White "whiteglovethief"]
[Black "MatthewG-p4p"]
[Result "0-1"]
[WhiteElo "2610"]
[BlackElo "2911"]
[TimeControl "180+1"]
[EndTime "15:43:31 PDT"]
[Termination "MatthewG-p4p won by resignation"]

1. d4 {[%clk 0:02:55.3]} 1... Nf6 {[%clk 0:02:59.1]} 2. c4 {[%clk 0:02:45.7]}
2... c5 {[%clk 0:02:58.2]} 3. d5 {[%clk 0:02:45.5]} 3... e6 {[%clk 0:02:58]} 4.
Nc3 {[%clk 0:02:44.8]} 4... exd5 {[%clk 0:02:58.3]} 5. cxd5 {[%clk 0:02:45.2]}
5... d6 {[%clk 0:02:59.2]} 6. e4 {[%clk 0:02:44.4]} 6... g6 {[%clk 0:03:00.1]}
7. f4 {[%clk 0:02:40.7]} 7... Bg7 {[%clk 0:02:59.8]} 8. e5 {[%clk 0:02:40.4]}
8... Nfd7 {[%clk 0:02:58.2]} 9. Nb5 {[%clk 0:02:39.6]} 9... dxe5 {[%clk
0:02:57.7]} 10. Nd6+ {[%clk 0:02:33.3]} 10... Ke7 {[%clk 0:02:57.2]} 11. Nxc8+
{[%clk 0:02:32.9]} 11... Qxc8 {[%clk 0:02:58.1]} 12. Nf3 {[%clk 0:02:32.3]}
12... e4 {[%clk 0:02:58.2]} 13. Ng5 {[%clk 0:02:30]} 13... Nb6 {[%clk
0:02:46.3]} 14. Nxe4 {[%clk 0:02:09.4]} 14... Re8 {[%clk 0:02:38.9]} 15. Be2
{[%clk 0:02:07.9]} 15... Bd4 {[%clk 0:02:33.2]} 16. f5 {[%clk 0:01:16.5]} 16...
Qxf5 {[%clk 0:02:26]} 17. Bg5+ {[%clk 0:00:45.5]} 17... Kd7 {[%clk 0:02:17.2]}
18. Qxd4 {[%clk 0:00:09]} 18... cxd4 {[%clk 0:02:13.9]} 19. Bb5+ {[%clk
0:00:08.6]} 0-1

[Event "Late-Titled-Tuesday-Blitz-April-23-2024"]
[Site "Chess.com"]
[Date "2024.04.23"]
[Round "9"]
[White "SahibSinghKnight"]
[Black "ChessBrainiacOnTwitch"]
[Result "0-1"]
[WhiteElo "2639"]
[BlackElo "2796"]
[TimeControl "180+1"]
[EndTime "15:43:41 PDT"]
[Termination "ChessBrainiacOnTwitch won by resignation"]

1. e4 {[%clk 0:03:00.9]} 1... c5 {[%clk 0:00:17.1]} 2. Nf3 {[%clk 0:02:58.7]}
2... d6 {[%clk 0:00:17.4]} 3. d4 {[%clk 0:02:59.2]} 3... cxd4 {[%clk 0:00:18.3]}
4. Nxd4 {[%clk 0:02:59.9]} 4... Nf6 {[%clk 0:00:19.1]} 5. Nc3 {[%clk 0:03:00.5]}
5... a6 {[%clk 0:00:20]} 6. Be3 {[%clk 0:03:00.5]} 6... e6 {[%clk 0:00:19.8]} 7.
f3 {[%clk 0:02:59.4]} 7... Be7 {[%clk 0:00:20.4]} 8. Qd2 {[%clk 0:02:59.9]} 8...
O-O {[%clk 0:00:21]} 9. g4 {[%clk 0:03:00.4]} 9... b5 {[%clk 0:00:20.9]} 10. g5
{[%clk 0:03:00.5]} 10... Nfd7 {[%clk 0:00:21.7]} 11. h4 {[%clk 0:03:00.9]} 11...
Bb7 {[%clk 0:00:22.5]} 12. O-O-O {[%clk 0:03:01]} 12... Ne5 {[%clk 0:00:22.8]}
13. f4 {[%clk 0:02:58]} 13... Nec6 {[%clk 0:00:21.7]} 14. h5 {[%clk 0:02:56.4]}
14... Nxd4 {[%clk 0:00:21.7]} 15. Bxd4 {[%clk 0:02:57.3]} 15... Nc6 {[%clk
0:00:22.6]} 16. h6 {[%clk 0:02:55.3]} 16... g6 {[%clk 0:00:20.4]} 17. Bg7 {[%clk
0:02:54.9]} 17... Re8 {[%clk 0:00:20.8]} 18. f5 {[%clk 0:02:54.4]} 18... Bxg5
{[%clk 0:00:19.6]} 19. f6 {[%clk 0:02:34]} 19... Bxd2+ {[%clk 0:00:19.8]} 20.
Rxd2 {[%clk 0:02:34.9]} 20... Ne5 {[%clk 0:00:20.3]} 21. Be2 {[%clk 0:02:33.8]}
21... b4 {[%clk 0:00:20.7]} 22. Na4 {[%clk 0:02:32.7]} 22... Bxe4 {[%clk
0:00:21.2]} 23. Rhd1 {[%clk 0:02:31]} 23... d5 {[%clk 0:00:20.9]} 24. Nc5 {[%clk
0:02:30.3]} 24... Bf5 {[%clk 0:00:20.1]} 25. Rd4 {[%clk 0:02:29]} 25... Rc8
{[%clk 0:00:20.1]} 26. Nd3 {[%clk 0:02:22.5]} 26... Nxd3+ {[%clk 0:00:20.2]} 27.
Bxd3 {[%clk 0:02:22.8]} 27... Bxd3 {[%clk 0:00:20.6]} 28. R1xd3 {[%clk
0:02:23.7]} 28... Qc7 {[%clk 0:00:21.2]} 29. c3 {[%clk 0:02:23.6]} 29... bxc3
{[%clk 0:00:21.3]} 30. Rxc3 {[%clk 0:02:24.5]} 30... Qe5 {[%clk 0:00:21.3]} 31.
Rd3 {[%clk 0:02:24.4]} 31... d4 {[%clk 0:00:21.1]} 32. Rxc8 {[%clk 0:02:23.5]}
32... Rxc8+ {[%clk 0:00:22]} 33. Kd2 {[%clk 0:02:24.4]} 33... Qh2+ {[%clk
0:00:22.3]} 0-1

[Event "Late-Titled-Tuesday-Blitz-April-23-2024"]
[Site "Chess.com"]
[Date "2024.04.23"]
[Round "9"]
[White "Akhayan"]
[Black "finec2"]
[Result "1-0"]
[WhiteElo "2416"]
[BlackElo "2231"]
[TimeControl "180+1"]
[EndTime "15:44:04 PDT"]
[Termination "Akhayan won by resignation"]

1. e4 {[%clk 0:03:00.9]} 1... c5 {[%clk 0:02:59.4]} 2. Nf3 {[%clk 0:03:00.2]}
2... e6 {[%clk 0:02:59.7]} 3. d4 {[%clk 0:02:55.6]} 3... cxd4 {[%clk 0:03:00.6]}
4. c3 {[%clk 0:02:54.6]} 4... d3 {[%clk 0:03:00.3]} 5. Bxd3 {[%clk 0:02:54.1]}
5... d6 {[%clk 0:03:00.4]} 6. O-O {[%clk 0:02:54.3]} 6... Nc6 {[%clk 0:03:00.4]}
7. c4 {[%clk 0:02:51.2]} 7... Nf6 {[%clk 0:03:00.3]} 8. Nc3 {[%clk 0:02:51.8]}
8... Qc7 {[%clk 0:02:59.8]} 9. b3 {[%clk 0:02:51.5]} 9... a6 {[%clk 0:02:59.7]}
10. Bb2 {[%clk 0:02:52.1]} 10... Be7 {[%clk 0:02:59.8]} 11. Rc1 {[%clk
0:02:52.5]} 11... Ne5 {[%clk 0:02:59.3]} 12. Bb1 {[%clk 0:02:50.9]} 12... O-O
{[%clk 0:02:59]} 13. Nd4 {[%clk 0:02:49.9]} 13... b6 {[%clk 0:02:58.9]} 14. f4
{[%clk 0:02:49]} 14... Ned7 {[%clk 0:02:59.6]} 15. Qf3 {[%clk 0:02:44]} 15...
Bb7 {[%clk 0:02:58]} 16. Qh3 {[%clk 0:02:44.5]} 16... g6 {[%clk 0:02:49.6]} 17.
f5 {[%clk 0:02:37.2]} 17... e5 {[%clk 0:02:46.2]} 18. fxg6 {[%clk 0:02:22.9]}
18... hxg6 {[%clk 0:02:44]} 19. Nf5 {[%clk 0:02:10.7]} 19... gxf5 {[%clk
0:02:39.9]} 20. Rxf5 {[%clk 0:02:10.9]} 20... Nh7 {[%clk 0:02:21.6]} 21. Rcf1
{[%clk 0:02:01.2]} 21... Ndf6 {[%clk 0:01:53.1]} 22. Nd5 {[%clk 0:01:54]} 22...
Bxd5 {[%clk 0:01:49.1]} 23. exd5 {[%clk 0:01:54.6]} 23... Kg7 {[%clk 0:01:31.9]}
24. Qg3+ {[%clk 0:01:15.3]} 24... Kh8 {[%clk 0:01:30.4]} 25. Rxf6 {[%clk
0:01:03.3]} 25... Nxf6 {[%clk 0:01:26.1]} 26. Rxf6 {[%clk 0:00:59.1]} 26... Bxf6
{[%clk 0:01:19.3]} 27. Qh3+ {[%clk 0:00:55.8]} 27... Bh4 {[%clk 0:01:19]} 28.
Qxh4+ {[%clk 0:00:55.9]} 28... Kg7 {[%clk 0:01:18.6]} 29. Qg5+ {[%clk
0:00:53.7]} 1-0

[Event "Late-Titled-Tuesday-Blitz-April-23-2024"]
[Site "Chess.com"]
[Date "2024.04.23"]
[Round "9"]
[White "Ghost_Pepper"]
[Black "reevecanada"]
[Result "0-1"]
[WhiteElo "2486"]
[BlackElo "2614"]
[TimeControl "180+1"]
[EndTime "15:44:35 PDT"]
[Termination "reevecanada won by checkmate"]

1. e4 {[%clk 0:03:00.9]} 1... c5 {[%clk 0:02:57.8]} 2. Nf3 {[%clk 0:02:59.5]}
2... d6 {[%clk 0:02:58.4]} 3. d4 {[%clk 0:02:59]} 3... cxd4 {[%clk 0:02:59.3]}
4. Nxd4 {[%clk 0:02:59.4]} 4... Nf6 {[%clk 0:03:00]} 5. Nc3 {[%clk 0:02:59.6]}
5... a6 {[%clk 0:03:00.4]} 6. h3 {[%clk 0:02:59.7]} 6... e5 {[%clk 0:03:00.3]}
7. Nde2 {[%clk 0:02:59]} 7... Be6 {[%clk 0:03:00.8]} 8. Bg5 {[%clk 0:02:59]}
8... Be7 {[%clk 0:02:59.8]} 9. g4 {[%clk 0:02:55.5]} 9... Nbd7 {[%clk
0:02:58.4]} 10. Bg2 {[%clk 0:02:54.6]} 10... h6 {[%clk 0:02:57.4]} 11. Bxf6
{[%clk 0:02:53.3]} 11... Nxf6 {[%clk 0:02:55.7]} 12. O-O {[%clk 0:02:52.9]}
12... b5 {[%clk 0:02:54.1]} 13. f4 {[%clk 0:02:48]} 13... Rc8 {[%clk 0:02:48.9]}
14. Nd5 {[%clk 0:02:30.4]} 14... Bxd5 {[%clk 0:02:39.7]} 15. exd5 {[%clk
0:02:31.3]} 15... Qb6+ {[%clk 0:02:37.9]} 16. Kh2 {[%clk 0:02:29]} 16... Qc5
{[%clk 0:02:35.9]} 17. c3 {[%clk 0:02:22.7]} 17... h5 {[%clk 0:02:09.7]} 18. g5
{[%clk 0:02:19.5]} 18... Ng4+ {[%clk 0:02:09]} 19. hxg4 {[%clk 0:01:33.6]} 19...
hxg4+ {[%clk 0:02:09.9]} 20. Kg3 {[%clk 0:01:33.9]} 20... Qe3+ {[%clk
0:02:04.1]} 21. Kxg4 {[%clk 0:01:27.8]} 21... f5+ {[%clk 0:02:02.3]} 22. Kxf5
{[%clk 0:01:02.2]} 22... Rh4 {[%clk 0:01:50.7]} 23. Rf3 {[%clk 0:00:45]} 23...
g6+ {[%clk 0:01:48.7]} 24. Kxg6 {[%clk 0:00:39.8]} 24... Qe4+ {[%clk 0:01:46.7]}
25. f5 {[%clk 0:00:39.8]} 25... Qg4 {[%clk 0:01:44]} 26. f6 {[%clk 0:00:19.7]}
26... Kd7 {[%clk 0:01:33.4]} 27. Bh3 {[%clk 0:00:15]} 27... Rxh3 {[%clk
0:01:32.7]} 28. Rxh3 {[%clk 0:00:14.9]} 28... Rg8+ {[%clk 0:01:31.2]} 29. Kf7
{[%clk 0:00:14.9]} 29... Qxg5 {[%clk 0:01:28.4]} 30. Qd3 {[%clk 0:00:06.5]}
30... Rf8# {[%clk 0:01:25.4]} 0-1

[Event "Late-Titled-Tuesday-Blitz-April-23-2024"]
[Site "Chess.com"]
[Date "2024.04.23"]
[Round "9"]
[White "LiemLe"]
[Black "Oleksandr_Bortnyk"]
[Result "0-1"]
[WhiteElo "3062"]
[BlackElo "3130"]
[TimeControl "180+1"]
[EndTime "15:44:44 PDT"]
[Termination "Oleksandr_Bortnyk won by resignation"]

1. c4 {[%clk 0:03:00.9]} 1... Nf6 {[%clk 0:02:58.9]} 2. Nc3 {[%clk 0:03:00.7]}
2... b6 {[%clk 0:02:49.6]} 3. d4 {[%clk 0:02:53.5]} 3... Bb7 {[%clk 0:02:49.7]}
4. d5 {[%clk 0:02:46.2]} 4... e5 {[%clk 0:02:47.4]} 5. e4 {[%clk 0:02:45]} 5...
Bc5 {[%clk 0:02:47]} 6. Bd3 {[%clk 0:02:24.4]} 6... Qe7 {[%clk 0:02:43.7]} 7. a3
{[%clk 0:02:17.1]} 7... a5 {[%clk 0:02:44]} 8. h3 {[%clk 0:02:12.3]} 8... Na6
{[%clk 0:02:43.4]} 9. Nge2 {[%clk 0:02:11.8]} 9... Nh5 {[%clk 0:02:36.4]} 10.
O-O {[%clk 0:01:50.9]} 10... g5 {[%clk 0:02:35.9]} 11. Na4 {[%clk 0:01:46.2]}
11... Nf4 {[%clk 0:02:32.9]} 12. Ng3 {[%clk 0:01:46.3]} 12... h5 {[%clk
0:02:31.2]} 13. Nf5 {[%clk 0:01:39.4]} 13... Qf6 {[%clk 0:02:31.2]} 14. Be3
{[%clk 0:01:35.9]} 14... g4 {[%clk 0:02:27.1]} 15. h4 {[%clk 0:01:32.1]} 15...
d6 {[%clk 0:02:16.5]} 16. g3 {[%clk 0:01:31.9]} 16... Bc8 {[%clk 0:01:59.1]} 17.
gxf4 {[%clk 0:01:17.5]} 17... Bxf5 {[%clk 0:01:58.9]} 18. Nxc5 {[%clk
0:01:11.7]} 18... Nxc5 {[%clk 0:01:54.2]} 19. exf5 {[%clk 0:01:09.7]} 19... Qxh4
{[%clk 0:01:49.4]} 20. Bxc5 {[%clk 0:00:34.7]} 20... g3 {[%clk 0:01:47.6]} 21.
Kg2 {[%clk 0:00:31.2]} 21... Rg8 {[%clk 0:01:16.8]} 22. Rh1 {[%clk 0:00:29.7]}
22... gxf2+ {[%clk 0:01:15.4]} 23. Kf3 {[%clk 0:00:30.4]} 23... Qxf4+ {[%clk
0:01:09.6]} 24. Ke2 {[%clk 0:00:30.3]} 24... bxc5 {[%clk 0:01:10.1]} 25. Qf1
{[%clk 0:00:20.7]} 25... e4 {[%clk 0:01:06.1]} 26. Bc2 {[%clk 0:00:20.6]} 26...
Qf3+ {[%clk 0:01:02.2]} 27. Kd2 {[%clk 0:00:20]} 27... e3+ {[%clk 0:01:03.1]}
28. Kc1 {[%clk 0:00:16.6]} 28... e2 {[%clk 0:01:03.1]} 0-1

[Event "Late-Titled-Tuesday-Blitz-April-23-2024"]
[Site "Chess.com"]
[Date "2024.04.23"]
[Round "9"]
[White "Crazy_girl99"]
[Black "MuhittinBuker"]
[Result "1-0"]
[WhiteElo "2604"]
[BlackElo "2172"]
[TimeControl "180+1"]
[EndTime "15:44:48 PDT"]
[Termination "Crazy_girl99 won on time"]

1. e4 {[%clk 0:02:48]} 1... e5 {[%clk 0:02:59.1]} 2. Nf3 {[%clk 0:02:48.2]} 2...
Nc6 {[%clk 0:02:58.5]} 3. Bc4 {[%clk 0:02:48.4]} 3... Nf6 {[%clk 0:02:57]} 4. d3
{[%clk 0:02:48.6]} 4... Bc5 {[%clk 0:02:55.7]} 5. c3 {[%clk 0:02:48.1]} 5... a6
{[%clk 0:02:55.7]} 6. a4 {[%clk 0:02:47.3]} 6... Ba7 {[%clk 0:02:55.9]} 7. O-O
{[%clk 0:02:47.3]} 7... d6 {[%clk 0:02:54.3]} 8. h3 {[%clk 0:02:47]} 8... h6
{[%clk 0:02:54.1]} 9. Be3 {[%clk 0:02:46.6]} 9... O-O {[%clk 0:02:53.4]} 10.
Nbd2 {[%clk 0:02:46.3]} 10... Be6 {[%clk 0:02:52.1]} 11. Re1 {[%clk 0:02:26]}
11... Qe7 {[%clk 0:02:35.2]} 12. d4 {[%clk 0:02:17.5]} 12... Bxc4 {[%clk
0:02:27.4]} 13. Nxc4 {[%clk 0:02:17.2]} 13... exd4 {[%clk 0:02:16.6]} 14. cxd4
{[%clk 0:02:09.5]} 14... Qxe4 {[%clk 0:02:01.4]} 15. Bxh6 {[%clk 0:02:07.1]}
15... Qd5 {[%clk 0:02:01]} 16. Ne3 {[%clk 0:02:06.9]} 16... Qh5 {[%clk
0:02:00.4]} 17. Bf4 {[%clk 0:01:51.1]} 17... Nd5 {[%clk 0:01:38.7]} 18. Bg3
{[%clk 0:01:42.9]} 18... Nxe3 {[%clk 0:01:35.5]} 19. fxe3 {[%clk 0:01:43.1]}
19... Rae8 {[%clk 0:01:31]} 20. Rc1 {[%clk 0:01:43]} 20... Re7 {[%clk
0:01:21.6]} 21. Bh4 {[%clk 0:01:27.3]} 21... Re4 {[%clk 0:01:19]} 22. Bg5 {[%clk
0:01:23.2]} 22... Rfe8 {[%clk 0:01:16.2]} 23. Bf4 {[%clk 0:01:16.4]} 23... Nxd4
{[%clk 0:00:40]} 24. Nxd4 {[%clk 0:01:15.1]} 24... Bxd4 {[%clk 0:00:36.5]} 25.
Qxh5 {[%clk 0:01:14.1]} 25... Bxe3+ {[%clk 0:00:25.3]} 26. Bxe3 {[%clk
0:01:13.9]} 26... Rxe3 {[%clk 0:00:25.3]} 27. Rxe3 {[%clk 0:01:14.6]} 27... Rxe3
{[%clk 0:00:25.3]} 28. Rxc7 {[%clk 0:01:15.3]} 1-0

[Event "Late-Titled-Tuesday-Blitz-April-23-2024"]
[Site "Chess.com"]
[Date "2024.04.23"]
[Round "9"]
[White "ACollins05"]
[Black "LeninGuerra"]
[Result "0-1"]
[WhiteElo "2542"]
[BlackElo "2679"]
[TimeControl "180+1"]
[EndTime "15:44:49 PDT"]
[Termination "LeninGuerra won by resignation"]

1. Nf3 {[%clk 0:03:00.9]} 1... c5 {[%clk 0:03:00]} 2. e3 {[%clk 0:03:01.3]} 2...
e6 {[%clk 0:03:00.4]} 3. b3 {[%clk 0:03:01.8]} 3... Nf6 {[%clk 0:02:59.9]} 4.
Bb2 {[%clk 0:03:02.3]} 4... Be7 {[%clk 0:03:00.6]} 5. Be2 {[%clk 0:03:02.3]}
5... O-O {[%clk 0:03:01.2]} 6. O-O {[%clk 0:03:02.9]} 6... b6 {[%clk 0:03:01.8]}
7. d4 {[%clk 0:03:03.3]} 7... Bb7 {[%clk 0:03:02.4]} 8. c4 {[%clk 0:03:03.8]}
8... d6 {[%clk 0:03:02]} 9. Nbd2 {[%clk 0:03:04.3]} 9... Nbd7 {[%clk 0:03:02.2]}
10. Rc1 {[%clk 0:03:04.5]} 10... Rc8 {[%clk 0:03:02.8]} 11. Rc2 {[%clk
0:03:02.5]} 11... Qc7 {[%clk 0:03:02.6]} 12. Qa1 {[%clk 0:03:02.3]} 12... Qb8
{[%clk 0:03:02.8]} 13. Rd1 {[%clk 0:02:56.5]} 13... Qa8 {[%clk 0:03:02.5]} 14.
Nf1 {[%clk 0:02:52.4]} 14... Rfd8 {[%clk 0:03:02.5]} 15. Ng3 {[%clk 0:02:49.9]}
15... Bf8 {[%clk 0:03:02]} 16. Rcd2 {[%clk 0:02:49.8]} 16... Ne4 {[%clk
0:02:59.9]} 17. Nxe4 {[%clk 0:02:48.7]} 17... Bxe4 {[%clk 0:03:00.8]} 18. dxc5
{[%clk 0:02:47.4]} 18... bxc5 {[%clk 0:02:55.5]} 19. Ne1 {[%clk 0:02:39.3]}
19... a5 {[%clk 0:02:45.2]} 20. Bf3 {[%clk 0:02:38.7]} 20... a4 {[%clk
0:02:39.7]} 21. Qc1 {[%clk 0:02:22.6]} 21... axb3 {[%clk 0:02:37.8]} 22. axb3
{[%clk 0:02:23.5]} 22... Bxf3 {[%clk 0:02:29.9]} 23. Nxf3 {[%clk 0:02:21.3]}
23... Qb7 {[%clk 0:02:30]} 24. Qc3 {[%clk 0:02:21.1]} 24... Qb4 {[%clk
0:02:19.8]} 25. Qxb4 {[%clk 0:02:18.3]} 25... cxb4 {[%clk 0:02:19.5]} 26. Nd4
{[%clk 0:02:18]} 26... Nc5 {[%clk 0:02:18.9]} 27. f4 {[%clk 0:01:58.4]} 27... e5
{[%clk 0:02:08.8]} 28. Nb5 {[%clk 0:01:46.7]} 28... Nxb3 {[%clk 0:02:07.7]} 29.
Rd5 {[%clk 0:01:44.9]} 29... exf4 {[%clk 0:02:03.6]} 30. exf4 {[%clk 0:01:39]}
30... Rxc4 {[%clk 0:01:46.7]} 31. Nxd6 {[%clk 0:01:36.1]} 31... Rxf4 {[%clk
0:01:39.9]} 32. Nf5 {[%clk 0:01:20.1]} 32... Rxd5 {[%clk 0:01:34.8]} 33. Rxd5
{[%clk 0:01:21]} 33... f6 {[%clk 0:01:25]} 34. g3 {[%clk 0:01:19.3]} 34... Rc4
{[%clk 0:01:23.2]} 35. Rd8 {[%clk 0:01:18.9]} 35... Kf7 {[%clk 0:01:20.7]} 36.
Ne3 {[%clk 0:01:06.7]} 36... Bc5 {[%clk 0:01:13.5]} 37. Rd3 {[%clk 0:01:05.5]}
37... Nc1 {[%clk 0:01:04.9]} 38. Bxc1 {[%clk 0:01:03.1]} 38... Rxc1+ {[%clk
0:01:05.8]} 39. Kg2 {[%clk 0:01:03.6]} 39... Bxe3 {[%clk 0:00:56.2]} 40. Rxe3
{[%clk 0:01:04.5]} 40... Rc2+ {[%clk 0:00:56.2]} 41. Kg1 {[%clk 0:01:04.1]}
41... Rc3 {[%clk 0:00:54]} 42. Re4 {[%clk 0:01:03]} 42... b3 {[%clk 0:00:54.4]}
43. Rb4 {[%clk 0:01:03]} 43... Rc1+ {[%clk 0:00:52.1]} 44. Kg2 {[%clk
0:01:03.3]} 44... Rc2+ {[%clk 0:00:52.7]} 45. Kg1 {[%clk 0:01:03.2]} 45... b2
{[%clk 0:00:53.1]} 0-1